{"text_format":"1","workbook":"xlsx","n_sheets":2,"sheets":["集計","合計値表示シート"],"not_rendered":{"charts":0,"images":0,"macros":1,"external_links":0,"defined_names":1,"comments":0,"pivot_tables":0},"unopened":[],"bounds":{"document_bytes":16777216,"sheet_cells":100000,"rows_first":2000,"rows_last":500,"rows_between":2000,"halvings":0,"cell_chars":16384,"cell_head_chars":4096},"cells_cut":0,"cells_raw":0,"read":"whole","date_system":"1900"}

{"sheet":"集計","index":0,"n_rows":0,"n_cols":0,"rows_kept":0,"cut":false,"hidden":false,"merged":[]}

{"sheet":"合計値表示シート","index":1,"n_rows":4,"n_cols":176,"rows_kept":4,"cut":false,"hidden":false,"merged":[[1,35,1,39],[0,0,2,0],[0,1,2,1],[0,2,0,10],[0,14,0,34],[0,35,0,130],[1,40,1,44],[1,45,1,49],[1,50,1,54],[1,55,1,59],[1,2,1,7],[1,8,1,10],[1,11,2,11],[1,14,1,24],[1,25,1,34],[1,93,1,97],[0,139,0,140],[0,141,0,153],[0,154,0,160],[0,161,0,175],[0,131,0,138],[1,60,1,64],[1,65,1,70],[1,71,1,76],[1,77,1,82],[1,88,1,92],[1,83,1,87],[1,166,1,171],[1,172,1,175],[1,154,2,154],[1,155,2,155],[1,156,2,156],[1,157,2,157],[1,158,2,158],[1,159,2,159],[1,12,2,12],[1,13,2,13],[0,11,0,13],[1,160,2,160],[1,161,1,165],[1,150,1,153],[1,98,1,102],[1,103,1,107],[1,108,1,113],[1,114,1,119],[1,120,1,125],[1,126,1,130],[1,131,1,134],[1,135,1,138],[1,141,1,146],[1,147,1,149]]}
["連番","Q1.貴社、貴団体のTDMパートナー登録時の、登録証記載の申込番号をご記入ください。","Q2.通勤手段をお教えください。（複数回答/該当項目に〇を選んでください）",null,null,null,null,null,null,null,null,"Q3.万博ＴＤＭトライアルについてご存知でしょうか。取組状況と合わせてお教えください。",null,null,"Q4.万博TDMを知っており、取り組んだ方に伺います。\n実際に取り組んだメニューをお答えください。",null,null,null,null,null,null,null,null,null,null,null,null,null,null,null,null,null,null,null,null,"Q5.Q4でお答えいただいたメニューに取り組んだ日に〇をつけてください。",null,null,null,null,null,null,null,null,null,null,null,null,null,null,null,null,null,null,null,null,null,null,null,null,null,null,null,null,null,null,null,null,null,null,null,null,null,null,null,null,null,null,null,null,null,null,null,null,null,null,null,null,null,null,null,null,null,null,null,null,null,null,null,null,null,null,null,null,null,null,null,null,null,null,null,null,null,null,null,null,null,null,null,null,null,null,null,null,null,null,null,null,null,null,null,"Q6.取り組んだ結果、万博開幕後に取り組む際の状況について、最も当てはまるものを教えてください。",null,null,null,null,null,null,null,"Q7.実際に取り組んでみて、課題だと思ったことをお教えください。",null,"Q8.TDMに取り組めなかった・取り組まなかった理由を教えてください。(複数回答)　※Q2で3を選択した方のみ",null,null,null,null,null,null,null,null,null,null,null,null,"Q9.万博開幕後、どのような状況であれば取り組みますか？（複数回答可）",null,null,null,null,null,null,"Q10.万博開催期間中は、多くの来場者により混雑が想定されます。万博開催期間中に取り組めそうなTDMメニューをお教えください。"]
[null,null,"（鉄道）",null,null,null,null,null,"（道路）",null,null,"1 知っており、取り組んだ　\n【Q4へ】","2 知っているが、取り組めなかった・取り組まなかった　\n【Q8へ】","3 知らなかった\n　【Q10へ】","人流（鉄道・道路）",null,null,null,null,null,null,null,null,null,null,"物流（道路）",null,null,null,null,null,null,null,null,null,"在宅勤務の実施",null,null,null,null,"計画的な休暇の取得",null,null,null,null,"時差出勤やフレックスの実施",null,null,null,null,"通勤ルート・手段の変更\n（四つ橋線、堺筋線、谷町線、ニュートラムの利用、バス、自転車の利用など）",null,null,null,null,"混雑しない交通手段で行けるサテライトオフィスの活用",null,null,null,null,"外出・出張",null,null,null,null,"その他\nコメント①",null,null,null,null,null,"その他\nコメント②",null,null,null,null,null,"その他\nコメント③",null,null,null,null,null,"取り組みなし（通常出勤）",null,null,null,null,"共同配送などによる移動量、配送量の削減",null,null,null,null,"納品時期・時間の変更による、混雑時間帯などの回避",null,null,null,null,"配送経路の変更による混雑場所・ルートの回避",null,null,null,null,"交通混雑の影響が小さいエリアにある倉庫等施設の活用",null,null,null,null,"その他\nコメント①",null,null,null,null,null,"その他\nコメント②",null,null,null,null,null,"その他\nコメント③",null,null,null,null,null,"取り組みなし（通常配送）",null,null,null,null,"人流（鉄道・道路）",null,null,null,"物流（道路）",null,null,null,"人流\n（鉄道・道路）","物流\n（道路）","人流（鉄道・道路）",null,null,null,null,null,"物流（道路）",null,null,"人流（鉄道・道路）・物流（道路）",null,null,null,"多くの来場者による交通混雑が明白な状況であれば取り組む","勤務先でTDMに取り組みやすい制度・環境が整えば取り組む","勤務先でTDMに取り組みやすい機運・風土ができれば取り組む","業務の特性上、TDMの取り組みは難しい","TDMの必要性が理解できておらず、よく分からない","その他","その他内容","人流（鉄道・道路）",null,null,null,null,"物流（道路）",null,null,null,null,null,"人流（鉄道・道路）・物流（道路）"]
[null,null,"（鉄道）Osaka   Metro中央線（弁天町－コスモスクエア間の一部区間、または全区間を含む利用）","（鉄道）Osaka   Metro中央線（その他）","（鉄道）Osaka   Metro御堂筋線（梅田－本町間の一部区間、または全区間を含む利用）","（鉄道）Osaka   Metro御堂筋線（その他）","（鉄道）Osaka   Metro（その他）※中央線・御堂筋線以外","（鉄道）Osaka   Metro以外（JRなど）","（道路）阪神高速道路","（道路）阪神高速道路以外","その他（バス、自転車など）",null,null,null,"在宅勤務の実施","計画的な休暇の取得","時差出勤やフレックスの実施","通勤ルート・手段の変更（四つ橋線、堺筋線、谷町線、ニュートラムの利用、バス、自転車の利用など）","混雑しない交通ルート・手段で行けるサテライトオフィスの活用","外出・出張等（重点エリア・主要エリアに勤務する従業員が午前中に事業所に出勤することなく、重点エリア・主要エリア外へ外出・出張等をする場合）","人流【鉄道・道路】に該当する取り組みはない","その他","その他（自由記述）①","その他（自由記述）②","その他（自由記述）③","共同配送などによる移動量、配送量の削減","納品時期・時間の変更による、混雑時間帯などの回避","配送経路の変更による混雑場所・ルートの回避","交通混雑の影響が小さいエリアにある倉庫等施設の活用への変更","物流事業はあるものの、物流【道路】に該当する取り組みはない（通常配送）","物流事業がないことから、物流【道路】に係る取り組みはない","その他内容","その他（自由記述）①","その他（自由記述）②","その他（自由記述）③","9 月30 日（月）","10月１日（火）","10月２日（水）","10月３日（木）","10月４日（金）","9 月30 日（月）","10月１日（火）","10月２日（水）","10月３日（木）","10月４日（金）","9 月30 日（月）","10月１日（火）","10月２日（水）","10月３日（木）","10月４日（金）","9 月30 日（月）","10月１日（火）","10月２日（水）","10月３日（木）","10月４日（金）","9 月30 日（月）","10月１日（火）","10月２日（水）","10月３日（木）","10月４日（金）","9 月30 日（月）","10月１日（火）","10月２日（水）","10月３日（木）","10月４日（金）","コメント①","9 月30 日（月）","10月１日（火）","10月２日（水）","10月３日（木）","10月４日（金）","コメント②","9 月30 日（月）","10月１日（火）","10月２日（水）","10月３日（木）","10月４日（金）","コメント③","9 月30 日（月）","10月１日（火）","10月２日（水）","10月３日（木）","10月４日（金）","9 月30 日（月）","10月１日（火）","10月２日（水）","10月３日（木）","10月４日（金）","9 月30 日（月）","10月１日（火）","10月２日（水）","10月３日（木）","10月４日（金）","9 月30 日（月）","10月１日（火）","10月２日（水）","10月３日（木）","10月４日（金）","9 月30 日（月）","10月１日（火）","10月２日（水）","10月３日（木）","10月４日（金）","9 月30 日（月）","10月１日（火）","10月２日（水）","10月３日（木）","10月４日（金）","コメント①","9 月30 日（月）","10月１日（火）","10月２日（水）","10月３日（木）","10月４日（金）","コメント②","9 月30 日（月）","10月１日（火）","10月２日（水）","10月３日（木）","10月４日（金）","コメント③","9 月30 日（月）","10月１日（火）","10月２日（水）","10月３日（木）","10月４日（金）","9 月30 日（月）","10月１日（火）","10月２日（水）","10月３日（木）","10月４日（金）","トライアル期間は対応が容易で、１ヶ月など長期でも取り組み可能","トライアル期間は難易度が高かったが、開幕までに社内の制度改変等の準備ができれば、1ヶ月など長期でも取り組み可能","トライアル期間は対応可能だったが、1ヶ月などより長期となると対応は厳しい","トライアル期間は対応が難しく、1ヶ月などより長期となると対応は厳しい","トライアル期間は対応が容易で、１ヶ月など長期でも取り組み可能","トライアル期間は難易度が高かったが、開幕までに社内の制度改変等の準備ができれば、1ヶ月など長期でも取り組み可能","トライアル期間は対応可能だったが、1ヶ月などより長期となると対応は厳しい","トライアル期間は対応が難しく、1ヶ月などより長期となると対応は厳しい","コメント","コメント","通信面などのIT環境や勤務環境が整っておらず、在宅勤務が困難だった","繁忙期や期末・期初等により休暇取得が困難だった","育児など家庭の事情で時差出勤が困難だった","移動ルート・手段の変更により、移動の負担が増えるため実施しなかった","その他","その他の内容","物流事業者等関係者との調整がつかなかった","その他","その他の内容","取り組むための準備期間が足りなかった","万博開催期間中の交通混雑状況が見えず、TDMの必要性を感じなかった","その他（以下に自由記述）","その他の内容",null,null,null,null,null,null,null,"在宅勤務の実施","計画的な休暇の取得","時差出勤、フレックスの実施","通勤ルート・手段の変更（四つ橋線や堺筋線、谷町線、ニュートラムの利用、バス、自転車の利用など）","混雑しない交通手段で行けるサテライトオフィスの活用","共同配送などによる移動量、配送量の削減","納品時期・時間の変更による、混雑時間帯などの回避","配送経路の変更による混雑場所・ルートの回避","交通混雑の影響が小さいエリアにある倉庫等施設の活用","物流事業はあるものの、物流【道路】に該当する取り組みはない","物流事業がないことから、物流【道路】に係る取り組みはない","業務の特性上、TDMの取り組みは難しい","TDMの必要性が理解できないので、分からない","その他（以下に自由記述）","その他内容"]
["合計",1,{"$f":"SUBTOTAL(9,C5:C10004)","v":0},0,0,0,0,0,0,0,0,0,0,0,{"$f":"SUBTOTAL(9,O5:O10004)","v":0},0,0,0,0,0,0,0,null,null,null,{"$f":"SUBTOTAL(9,Z5:Z10004)","v":0},0,0,0,0,0,0,null,null,null,{"$f":"SUBTOTAL(9,AJ5:AJ10004)","v":0},0,0,0,0,0,0,0,0,0,0,0,0,0,0,0,0,0,0,0,0,0,0,0,0,0,0,0,0,0,null,0,0,0,0,0,null,{"$f":"SUBTOTAL(9,BU5:BU10004)","v":0},{"$f":"SUBTOTAL(9,BV5:BV10004)","v":0},{"$f":"SUBTOTAL(9,BW5:BW10004)","v":0},{"$f":"SUBTOTAL(9,BX5:BX10004)","v":0},{"$f":"SUBTOTAL(9,BY5:BY10004)","v":0},null,{"$f":"SUBTOTAL(9,CA5:CA10004)","v":0},0,0,0,0,0,0,0,0,0,0,0,0,0,0,0,0,0,0,0,0,0,0,0,0,0,0,0,0,0,null,{"$f":"SUBTOTAL(9,DF5:DF10004)","v":0},{"$f":"SUBTOTAL(9,DG5:DG10004)","v":0},{"$f":"SUBTOTAL(9,DH5:DH10004)","v":0},{"$f":"SUBTOTAL(9,DI5:DI10004)","v":0},{"$f":"SUBTOTAL(9,DJ5:DJ10004)","v":0},null,{"$f":"SUBTOTAL(9,DL5:DL10004)","v":0},{"$f":"SUBTOTAL(9,DM5:DM10004)","v":0},{"$f":"SUBTOTAL(9,DN5:DN10004)","v":0},{"$f":"SUBTOTAL(9,DO5:DO10004)","v":0},{"$f":"SUBTOTAL(9,DP5:DP10004)","v":0},null,{"$f":"SUBTOTAL(9,DR5:DR10004)","v":0},0,0,0,0,0,0,0,0,0,0,0,0,0,0,0,0,0,null,null,{"$f":"SUBTOTAL(9,EL5:EL10004)","v":0},{"$f":"SUBTOTAL(9,EM5:EM10004)","v":0},{"$f":"SUBTOTAL(9,EN5:EN10004)","v":0},{"$f":"SUBTOTAL(9,EO5:EO10004)","v":0},{"$f":"SUBTOTAL(9,EP5:EP10004)","v":0},null,{"$f":"SUBTOTAL(9,ER5:ER10004)","v":0},0,null,0,0,0,null,{"$f":"SUBTOTAL(9,EY5:EY10004)","v":0},0,0,0,0,0,null,{"$f":"SUBTOTAL(9,FF5:FF10004)","v":0},0,0,0,0,0,0,0,0,0,0,0,0,0]